Cogmind - Beta 14 @@@ ROGUE MODE // 2024.08.22 @ 21:17:58 Player: Olafz Result: Destroyed by Y-45 Defender with Heavy Assault Rifle Performance ------------- Evolutions (2) 1000 Regions Visited (3) 600 Robots Destroyed (41) 205 Value Destroyed (823) 823 Prototype IDs (3) 60 Alien Tech Used (0) 0 Bonus (37) 37 TOTAL SCORE: 2725 Bonus ------- High Alert Combat Kills 37 Cogmind --------- Core Integrity 0/550 Matter 89/300 Energy 100/100 System Corruption 0% Temperature Cool (0) Movement Core (350) Ox6 Location -8/Materials Parts ------- > --- POWER (1) -------- (None) > --- PROPULSION (2) --- (None) > --- UTILITY (6) ------ Large Storage Unit > --- WEAPON (2) ------- (None) > --- INVENTORY (15) --- Aluminum Leg Improved VTOL Module Small Storage Unit Large Storage Unit Heavy Assault Rifle Improved Assault Rifle Hammer Peak State ------------ > --- POWER ------------ Ion Engine > --- PROPULSION ------- Aluminum Leg Aluminum Leg > --- UTILITY ---------- Large Storage Unit Structural Scanner > --- WEAPON ----------- Improved Assault Rifle Enhanced Autogun > --- INVENTORY -------- Aluminum Leg Aluminum Leg Improved VTOL Module Small Storage Unit Large Storage Unit Light Assault Rifle Light Assault Rifle Heavy Assault Rifle Improved Assault Rifle Improved Assault Rifle Improved Assault Rifle Rocket Launcher Hammer [Rating: 14] Favorites ----------- Power Light Ion Engine Engine Light Ion Engine Propulsion Aluminum Leg Leg Aluminum Leg Utility Structural Scanner Device Structural Scanner Storage Large Storage Unit Weapon Improved Assault Rifle Ballistic Gun Improved Assault Rifle Launcher Grenade Launcher Build | -11 -10 -9 -8 ------- Run | Yrd Mat Mat Mat Slots Evolved 4 | . . 2 2 Power . | . . . . Propulsion . | . . . . Utility 4 | . . 2 2 Weapon . | . . . . Parts Attached 28 | 5 14 2 7 Power 3 | 1 1 1 . Engine 3 | 1 1 1 . Core . | . . . . Reactor . | . . . . Propulsion 8 | 2 4 1 1 Treads . | . . . . Leg 8 | 2 4 1 1 Wheel . | . . . . Hover . | . . . . Flight . | . . . . Utility 3 | 1 2 . . Device 1 | . 1 . . Storage 2 | 1 1 . . Processor . | . . . . Hackware . | . . . . Protection . | . . . . Artifact . | . . . . Weapon 14 | 1 7 . 6 Energy Gun . | . . . . Energy Cannon . | . . . . Ballistic Gun 11 | 1 5 . 5 Ballistic Cannon . | . . . . Launcher 3 | . 2 . 1 Special Weapon . | . . . . Impact Weapon . | . . . . Slashing Weapon . | . . . . Piercing Weapon . | . . . . Special Melee Weapon . | . . . . Unidentified Prototypes 2 | . 1 . 1 Parts Lost 15 | . 2 1 12 Power 3 | . 1 1 1 Propulsion 3 | . . . 3 Utility 1 | . . . 1 Weapon 8 | . 1 . 7 Highest Loss Streak 12 | . 2 1 12 To Critical Strikes . | . . . . Average Slot Usage (%) 78 | . 89 75 56 Engine 10 | . 12 9 7 Leg 23 | . 27 22 15 Device 11 | . 12 11 8 Storage 11 | . 14 11 9 Ballistic Gun 17 | . 15 22 15 Launcher 2 | . 5 . . Peak Build Rating 14 | 5 12 12 14 Average Rating 9 | 3 6 11 12 On Entrance 7 | . 5 12 12 Naked Turns . | . . . . Heaviest Build 32 | 10 30 32 32 Greatest Support 20 | 20 20 20 20 Greatest Overweight (x) 8 | . 1 1 8 Average Overweight (x) . | . . 1 1 Largest Inventory Capacity 15 | 8 15 15 15 Average Capacity 12 | 6 10 15 15 Most Carried 13 | 1 9 11 13 Average Carried 6 | . 3 9 11 Final Capacity 15 | 8 15 15 15 Final Carried 11 | 1 9 11 7 Class Distribution -------------------- 100% | Mutant Dominant Class ---------------- Mutant | -10/Materials Mutant | -9/Materials Mutant | -8/Materials Resources | -11 -10 -9 -8 ----------- Run | Yrd Mat Mat Mat Matter Collected 663 | 67 227 219 150 Remotely . | . . . . Salvage Created 1126 | . 416 247 463 Parts 70 | . 25 14 31 Haulers Intercepted 1 | . 1 . . Recyclers Shooed 1 | . . . 1 Parts Field Recycled . | . . . . Retrieved Matter . | . . . . Parts Self-Destructed . | . . . . Prevented . | . . . . Kills | -11 -10 -9 -8 ------- Run | Yrd Mat Mat Mat Combat Hostiles Destroyed 29 | . 12 7 10 Guns 18 | . 4 7 7 AOE 11 | . 8 . 3 Classes Destroyed 10 | . 7 1 2 Worker 3 | . 1 1 1 Builder 2 | . 1 . 1 Hauler 1 | . 1 . . Recycler 5 | . 2 1 2 Watcher 1 | . 1 . . Swarmer 16 | . 8 4 4 Grunt 10 | . 4 2 4 Duelist 1 | . . . 1 Sentry 1 | . . 1 . Hunter 1 | . . . 1 Best Kill Streak 9 | . 9 5 7 Combat Bots Only 6 | . 5 4 6 Max Kills in Single Turn 4 | . 4 2 3 Gunslinging 1 | . . 1 . Exploded 4 | . 4 . 3 Melee . | . . . . Uniques/NPCs Destroyed . | . . . . Combat | -11 -10 -9 -8 -------- Run | Yrd Mat Mat Mat Hostile Shots Fired 256 | . 72 39 145 Missed 56 | . 22 7 27 Damage Taken 2385 | . 500 389 1496 Core 798 | . 101 137 560 Absorbed by Shields . | . . . . Core Remaining (%) 74 | 100 59 65 . Volleys Fired 81 | . 39 13 29 Largest 2 | . 2 2 2 Hottest 50 | . 50 46 48 Shots Fired 137 | . 56 26 55 Gun 124 | . 45 26 53 Cannon . | . . . . Launcher 13 | . 11 . 2 Special . | . . . . Kinetic 124 | . 45 26 53 Thermal . | . . . . Explosive 13 | . 11 . 2 Electromagnetic . | . . . . Robot Hit Streak 14 | . 6 14 12 Robot Miss Streak 3 | . 3 1 3 Penetration Max . | . . . . Secondary Targets 5 | . 1 1 3 Max Gunslinging Chain 1 | . 1 1 1 Shots Hit Robots 90 | . 29 23 38 Core Hits 67 | . 26 11 30 Critical Kills . | . . . . Critical Parts Destroyed . | . . . . Critical Strikes . | . . . . Melee Attacks . | . . . . Impact . | . . . . Slashing . | . . . . Piercing . | . . . . Sneak Attacks . | . . . . Combat Hostiles . | . . . . Follow-up Attacks . | . . . . Damage Inflicted 2173 | . 827 472 874 Guns 1194 | . 257 353 584 Cannons . | . . . . Explosions 974 | . 570 114 290 Melee . | . . . . Ramming 5 | . . 5 . Kinetic 1194 | . 257 353 584 Thermal 114 | . . 114 . Explosive 860 | . 570 . 290 Electromagnetic . | . . . . Impact . | . . . . Slashing . | . . . . Piercing . | . . . . Highest Corruption . | . . . . Average Corruption . | . . . . Corruption Purged . | . . . . Corruption Blocked . | . . . . Overload Shots . | . . . . Overflow Damage 91 | . 17 74 . Projectiles . | . . . . Explosions 91 | . 17 74 . Melee . | . . . . Knockbacks . | . . . . Impact . | . . . . Kinetic . | . . . . Secondary . | . . . . Self-Inflicted Damage 158 | . 11 101 46 Shots 4 | . 2 1 1 Rammed . | . . . . Targets Rammed 2 | . . 2 . Kicked 2 | . . 2 . Crushed . | . . . . Highest Temperature 38 | . 15 . 38 Average Temperature 12 | . 7 . 16 Received Heat Transfer 717 | . 147 48 522 Siege Activations . | . . . . Robots Corrupted . | . . . . Combat Hostiles . | . . . . Parts Fried . | . . . . Impact Corruptions . | . . . . Robots Melted . | . . . . Combat Hostiles . | . . . . Parts Melted 1 | . . 1 . Heat Transferred 50 | . . 50 . Parts Sabotaged . | . . . . Parts Stolen . | . . . . Parts Stripped . | . . . . Power Chain Reactions . | . . . . Alert | -11 -10 -9 -8 ------- Run | Yrd Mat Mat Mat Peak Influence 545 | . 545 379 353 Initial 159 | . . 145 159 Average 256 | . 290 287 211 Maximum Alert Level 2 | . 2 1 1 Low Security (%) 41 | 100 37 21 60 Level 1 42 | . 26 78 39 Level 2 15 | . 35 . . Level 3 . | . . . . Level 4 . | . . . . Level 5 . | . . . . High Security . | . . . . Max Security . | . . . . Squads Dispatched 1 | . 1 . . Investigation . | . . . . Extermination . | . . . . Reinforcement 1 | . 1 . . Assault . | . . . . Garrison . | . . . . Intercept . | . . . . Searches Triggered . | . . . . Construction Impeded . | . . . . Haulers Reinforced . | . . . . Active Scanning Responses . | . . . . Cargo Convoy Interrupts . | . . . . Stealth | -11 -10 -9 -8 --------- Run | Yrd Mat Mat Mat Distress Signals 4 | . 1 . 3 Communications Jammed . | . . . . Distress Signals . | . . . . Times Spotted 49 | . 24 10 15 Peak Tracking Total 7 | . 6 4 7 Tactical Retreats 3 | . 2 1 . Traps | -11 -10 -9 -8 ------- Run | Yrd Mat Mat Mat Traps Triggered 2 | . 2 . . Indirectly . | . . . . Trap Hack Attempts . | . . . . Triggered . | . . . . Disarmed . | . . . . Reprogrammed . | . . . . Reused . | . . . . Traps Extracted . | . . . . Installed . | . . . . Triggered . | . . . . Machines | -11 -10 -9 -8 ---------- Run | Yrd Mat Mat Mat Machines Disabled 5 | . 3 2 . Max in Single Turn 2 | . 1 2 . Machines Repaired . | . . . . Machines Dismantled . | . . . . Machines Sabotaged . | . . . . Overloaded Fab Kills . | . . . . Hacking | -11 -10 -9 -8 --------- Run | Yrd Mat Mat Mat Machines Accessed 2 | . . 1 1 Terminals 1 | . . 1 . Fabricators . | . . . . Repair Stations . | . . . . Recycling Units . | . . . . Scanalyzers 1 | . . . 1 Garrison Access . | . . . . Total Hacks 4 | . . 2 2 Successful 3 | . . 1 2 Failed 1 | . . 1 . Catastrophic . | . . . . Database Lockouts . | . . . . Manual 2 | . . 2 . Terminals 2 | . . 2 . Fabricators . | . . . . Repair Stations . | . . . . Recycling Units . | . . . . Scanalyzers 2 | . . . 2 Garrison Access . | . . . . Terminal Hacks . | . . . . Fabricator Hacks . | . . . . Repair Station Hacks . | . . . . Recycling Unit Hacks . | . . . . Scanalyzer 2 | . . . 2 Insert Component 1 | . . . 1 Analyze 1 | . . . 1 Garrison Access Hacks . | . . . . Unauthorized Hacks 1 | . . 1 . Terminals 1 | . . 1 . Botnet 1 | . . 1 . Fabricators . | . . . . Repair Stations . | . . . . Recycling Units . | . . . . Scanalyzers . | . . . . Garrison Access . | . . . . Data Cores Recovered . | . . . . Used . | . . . . Hacking Detections 1 | . . 1 . Full Trace Events . | . . . . Feedback Events . | . . . . Feedback Blocked . | . . . . Robot Schematics Acquired . | . . . . Robots Built . | . . . . Authchips . | . . . . Time . | . . . . Total Robot Build Rating . | . . . . Part Schematics Acquired . | . . . . Parts Built . | . . . . Authchips . | . . . . Time . | . . . . Total Part Build Rating . | . . . . Parts Repaired . | . . . . Time . | . . . . Parts Recycled . | . . . . Recycled Matter . | . . . . Retrieved Matter . | . . . . Retrieved Components . | . . . . Parts Scanalyzed 1 | . . . 1 Part Schematics Acquired . | . . . . Parts Damaged . | . . . . Bothacking | -11 -10 -9 -8 ------------ Run | Yrd Mat Mat Mat Used RIF Installer . | . . . . Robots Hacked . | . . . . Non-combat . | . . . . Combat . | . . . . Robot Hacks Applied . | . . . . Relay Couplers Released . | . . . . Fabnet Peak Effective % . | . . . . Robots Rewired . | . . . . Allies Hacked . | . . . . Hacks Repelled . | . . . . Allies | -11 -10 -9 -8 -------- Run | Yrd Mat Mat Mat Total Allies . | . . . . Largest Group . | . . . . Highest-Rated Group . | . . . . Highest-Rated Ally . | . . . . Total Orders . | . . . . Ally Attacks . | . . . . Total Damage . | . . . . Kills . | . . . . Allies Corrupted . | . . . . Allies Melted . | . . . . Intel | -11 -10 -9 -8 ------- Run | Yrd Mat Mat Mat Robot Analysis Total . | . . . . Derelict Logs Recovered . | . . . . Drone Launches . | . . . . Drone Recoveries . | . . . . Exploration | -11 -10 -9 -8 ------------- Run | Yrd Mat Mat Mat Turns Passed 1015 | 56 445 299 215 Spaces Moved 471 | 44 231 130 66 Core 10 | 7 . . 3 Treads . | . . . . Legs 461 | 37 231 130 63 Wheels . | . . . . Hover . | . . . . Flight . | . . . . Fastest Speed 50 | 50 120 190 190 Average Speed 160 | 108 142 190 200 Slowest Speed 450 | 120 190 190 450 Overloaded Moves . | . . . . Propulsion Burnouts . | . . . . Robots Hopped . | . . . . Cave-ins Triggered . | . . . . Exploration Rate (%) 20 | 4 47 22 10 Regions Visited 3 Branch Regions . Pre-discovered Areas . | . . . . Known Exits Taken . | . . . . Unknown Exits Taken 3 | 1 1 1 . Scrap Searched . | . . . . Spaces Dug . | . . . . Terrain Destroyed 81 | . 50 8 23 Melee . | . . . . Projectile . | . . . . AOE 81 | . 50 8 23 Terrain Rammed . | . . . . Walls Destroyed . | . . . . Machines Disabled . | . . . . Actions | -11 -10 -9 -8 --------- Run | Yrd Mat Mat Mat Total 596 | 49 289 154 104 Wait 7 | . . 7 . Move 468 | 43 230 129 66 Hop . | . . . . Pick Up 8 | 1 5 1 1 Fast Attach 14 | 5 7 1 1 Attach 7 | . 1 . 6 Detach 1 | . . . 1 Swap 7 | . 6 1 . Drop 1 | . 1 . . Fire 81 | . 39 13 29 Melee . | . . . . Ram . | . . . . Kick 2 | . . 2 . Crush . | . . . . Escape Stasis . | . . . . Rewire . | . . . . Trap . | . . . . Miscellaneous . | . . . . Route ------- -11/Scrapyard -10/Materials -9/Materials -8/Materials History --------- Turn | Location | Event 39 | -11/Scrapyard | Discovered new exit (range 16) 57 | -11/Scrapyard | Entered Materials 311 | -10/Materials | Build established: Mutant 477 | -10/Materials | Discovered new exit (range 4) 502 | -10/Materials | Entered another Materials area 502 | -9/Materials | Evolved 2 slots: Utility x2 779 | -9/Materials | Discovered new exit (range 11) 801 | -9/Materials | Entered another Materials area 801 | -8/Materials | Evolved 2 slots: Utility x2 991 | -8/Materials | Core integrity fell below 50% 1007 | -8/Materials | Core integrity fell below 20% 1016 | -8/Materials | Destroyed by Y-45 Defender with Heavy Assault Rifle Last Messages --------------- R-06 Scavenger collects Lgt. Ion Engine. K-01 Serf collects debris. R-06 Scavenger collects Carbon-fiber Leg. K-01 Serf collects debris. R-06 Scavenger destroyed. Switching to secondary target: G-47 Trooper. Imp. Assault Rifle destroyed. K-01 Serf collects debris. Imp. Assault Rifle destroyed. Structural Scanner destroyed. K-01 Serf collects debris. Lgt. Assault Rifle destroyed. G-47 Trooper destroyed. S-10 Pest destroyed. U-05 Engineer destroyed. K-01 Serf collects debris. Acquired 50 matter. Rocket Launcher destroyed. K-01 Serf collects debris. The unstable cave ceiling collapses. Map ----- +----------------------------------------------------+ | ???????????????????????????????????????????? | | ???????????????????????????????????????????? | | ???????????????????????????????????????????? | | ?????????????????????????##############????? | | ?????????????????????????##############????? | | ?????????????????????????## # "" ##????? | | ?????????????????????????## # ""S ##????? | | ?????????????????????????## # "" ##????? | | ?????????????????????????## + ##????? | | ?????????????????????????## # ##????? | | ?????????????????????????## # ] #####?? | | ?????????????????????????## ############?? | | ?????????????????????????## # * ##?? | | ?????????????????????????## # = ##?? | | ?????????????? # ????????## # ##?? | | ???????????????+ ???????## + ##?? | | ???????????????# ???????## # """ """ ##?? | | ???????????????? ??????## # """ """ ##?? | | ???????????????#? ?????## # """ """ ##?? | | ???????????????# ????## # ##?? | | ???????????????# ??### ############?? | | ???????????????# u # ###?? | | ???????????######### # +# = """ ??????? | | ?????????? =*%%[%*== """ ?????? | | ?????????? ! !% !% *!*Y """ ?????? | | ???????????? " !!%[@s=[=* ##?? | | ???????????? T %% """ "" ###?? | | ???????????? ! " # =# =# """ T" ###?? | | ????????????? ?? # ?# k # """ ???????? | | ??????????????????## ??# """# ? ???????? | | ?????????????????? ??# """##??##???????? | | ????????????????? ????+ """##???????????? | | ???????????????? ????? # """#????????????? | | ???????????????#?????? # ??????????????? | | ????????????????????? ?# ""??????????????? | | ????????????????????? ?# "???????????????? | | ???????????????????? ??# "???????????????? | | ???????????????????????# "???????????????? | | ???????????????????????# ???????????????? | | ????????????????????????! ????????????????? | | ????????????????????????###????????????????? | | ???????????????????????????????????????????? | | ???????????????????????????????????????????? | | ???????????????????????????????????????????? | | ???????????????????????????????????????????? | | ???????????????????????????????????????????? | | ???????????????????????????????????????????? | | ???????????????????????????????????????????? | | ???????????????????????????????????????????? | | ???????????????????????????????????????????? | +----------------------------------------------------+ Best States ------------- Heat Dissipation 31 Energy Generation 10 Energy Capacity 250 Matter Stores 158 Matter Capacity 300 Sight Range 16 Terrain Scan Density 10 Evasion (%) 55 Item Schematics ----------------- None Robot Schematics ------------------ None Fabricated ------------ Nothing Alien Tech Used ----------------- None Achievements -------------- None Challenges ------------ None Game ------ Seed CoolingRagnarokCompanion Manual? 0 Play Time 00:10:42 Cumulative 240.7 hours Start 2024.08.22 @ 21:06:17 End 2024.08.22 @ 21:17:58 Sessions 1 Manual Loads 0 Difficulty Rogue Special Mode None Game No. 425 Rogue 423 Adventurer 2 Explorer 0 Win Type - Total 10 Types 8/0/0/2/0/0/0/0/0 Lore% 73 Gallery% 68 Achievement% 56 Wizard Run 0 Options --------- Layout 0 ASCII 0 Keyboard 1 Movement Numpad Keybinds 1 Fullscreen 2 Font 18/SmallcapsGlow Map View 76x50 Zoom Use 0% Tactical HUD 1 Map Filters NONE Filters NONE Steam 1 RUN: 48a7e575-fedd-421c-aa13-615413479814